fUST/lending_fUST_20250215
["ID","MTS","AMOUNT","RATE_DAILY","PERIOD"]
[353096435,1739559056583,-500.0,0.0001378,2]
[353096436,1739559056599,-500.0,0.0001378,2]
[353096437,1739559056612,-500.0,0.0001378,2]
[353096438,1739559056629,-500.0,0.0001378,2]
[353096439,1739559056643,-500.0,0.0001378,2]
[353096440,1739559056656,-543.57444548,0.0001378,2]
[353096441,1739559056671,-500.0,0.0001378,2]
[353096442,1739559056689,-248.87792677,0.0001378,2]
[353096443,1739559056702,-892.96,0.0001378,2]
[353096444,1739559056716,-500.0,0.0001378,2]
[353096445,1739559056730,-500.0,0.0001378,2]
[353096446,1739559056745,-500.0,0.0001378,2]
[353096447,1739559056761,-1482.78,0.0001378,2]
[353096448,1739559056774,-500.0,0.0001378,2]
[353096449,1739559056788,-565.25969651,0.0001378,2]
[353096450,1739559056801,-223.56055104,0.0001378,2]
[353096451,1739559056816,-789.03,0.0001378,2]
[353096452,1739559056829,-693.42,0.0001378,2]
[353096453,1739559056844,-500.0,0.0001378,2]
[353096454,1739559056858,-500.0,0.0001378,2]
[353096455,1739559056873,-500.0,0.0001378,2]
[353096456,1739559056887,-500.0,0.0001378,2]
[353096457,1739559056903,-259.40794356,0.0001378,2]
[353096458,1739559056917,-500.0,0.0001378,2]
[353096459,1739559056932,-500.0,0.0001378,2]
[353096460,1739559056945,-599.64845675,0.0001378,2]
[353096461,1739559056960,-500.0,0.0001378,2]
[353096462,1739559056973,-500.0,0.0001378,2]
[353096463,1739559056987,-460.04969692,0.0001378,2]
[353096464,1739559057001,-154.77990034,0.0001378,2]
[353096465,1739559057015,-500.0,0.0001378,2]
[353096466,1739559057030,-500.0,0.0001378,2]
[353096467,1739559057044,-500.0,0.0001378,2]
[353096468,1739559057059,-500.0,0.0001378,2]
[353096469,1739559057073,-500.0,0.0001378,2]
[353096470,1739559057086,-500.0,0.0001378,2]
[353096471,1739559057100,-500.0,0.0001378,2]
[353096472,1739559057115,-500.0,0.0001378,2]
[353096473,1739559057130,-390.16312571,0.0001378,2]
[353096474,1739559057144,-541.21467114,0.0001378,2]
[353096475,1739559057159,-502.24315677,0.0001378,2]
[353096476,1739559057175,-500.0,0.0001378,2]
[353096477,1739559057189,-832.49,0.0001378,2]
[353096478,1739559057204,-500.0,0.0001378,2]
[353096479,1739559057217,-1651.52,0.0001378,2]
[353096480,1739559057232,-500.0,0.0001378,2]
[353096481,1739559057247,-791.57,0.0001378,2]
[353096482,1739559057262,-500.0,0.0001378,2]
[353096483,1739559057278,-1572.14,0.0001378,2]
[353096484,1739559057293,-500.0,0.0001378,2]
[353096485,1739559057303,-500.0,0.0001378,2]
[353096486,1739559057314,-500.0,0.0001378,2]
[353096487,1739559057489,-500.0,0.0001378,2]
[353096488,1739559057499,-500.0,0.0001378,2]
[353096489,1739559057510,-219.73890256,0.0001378,2]
[353096490,1739559057521,-153.5073582,0.0001378,2]
[353096491,1739559057531,-501.18882861,0.0001378,2]
[353096492,1739559057541,-500.0,0.0001378,2]
[353096493,1739559057551,-335.6025772,0.0001378,2]
[353096494,1739559057560,-500.0,0.0001378,2]
[353096495,1739559057570,-501.17098001,0.0001378,2]
[353096496,1739559057579,-500.0,0.0001378,2]
[353096497,1739559057589,-500.0,0.0001378,2]
[353096498,1739559057598,-500.0,0.0001378,2]
[353096499,1739559057607,-1279.32,0.0001378,2]
[353096500,1739559057617,-500.0,0.0001378,2]
[353096501,1739559057627,-500.0,0.0001378,2]
[353096502,1739559057637,-500.0,0.0001378,2]
[353096503,1739559057646,-501.49914159,0.0001378,2]
[353096504,1739559057656,-170.10630595,0.0001378,2]
[353096505,1739559057665,-500.0,0.0001378,2]
[353096506,1739559057678,-500.0,0.0001378,2]
[353096507,1739559057689,-500.0,0.0001378,2]
[353096508,1739559057698,-500.0,0.0001378,2]
[353096509,1739559057707,-909.14,0.0001378,2]
[353096510,1739559057719,-500.0,0.0001378,2]
[353096511,1739559057729,-500.0,0.0001378,2]
[353096512,1739559057739,-500.0,0.0001378,2]
[353096513,1739559057749,-500.0,0.0001378,2]
[353096514,1739559057760,-500.0,0.0001378,2]
[353096515,1739559057771,-500.0,0.0001378,2]
[353096516,1739559057782,-1191.19,0.0001378,2]
[353096517,1739559057792,-500.0,0.0001378,2]
[353096518,1739559057802,-500.0,0.0001378,2]
[353096519,1739559057812,-506.30246226,0.0001378,2]
[353096520,1739559057822,-500.0,0.0001378,2]
[353096521,1739559057832,-1591.97,0.0001378,2]
[353096522,1739559057842,-500.26325349,0.0001378,2]
[353096523,1739559057852,-500.0,0.0001378,2]
[353096524,1739559057861,-500.0,0.0001378,2]
[353096525,1739559057873,-500.0,0.0001378,2]
[353096526,1739559057882,-500.0,0.0001378,2]
[353096527,1739559057892,-4869.06,0.0001378,2]
[353096528,1739559057901,-503.06316886,0.0001378,2]
[353096529,1739559057911,-500.0,0.0001378,2]
[353096530,1739559057920,-980.77,0.0001378,2]
[353096531,1739559057930,-8080.52,0.0001378,2]
[353096532,1739559057939,-510.09,0.0001378,2]
[353096533,1739559057949,-500.0,0.0001378,2]
[353096534,1739559057959,-633.4016986,0.0001378,2]
[353096535,1739559057969,-500.0,0.0001378,2]
[353096536,1739559057979,-2386.08,0.0001378,2]
[353096537,1739559057989,-500.0,0.0001378,2]
[353096538,1739559057998,-500.0,0.0001378,2]
[353096539,1739559058007,-500.0,0.0001378,2]
[353096540,1739559058016,-849.58,0.0001378,2]
[353096541,1739559058026,-500.0,0.0001378,2]
[353096542,1739559058036,-776.8,0.0001378,2]
[353096543,1739559058045,-500.0,0.0001378,2]
[353096544,1739559058055,-500.0,0.0001378,2]
[353096545,1739559058064,-500.0,0.0001378,2]
[353096546,1739559058074,-500.0,0.0001378,2]
[353096547,1739559058083,-500.0,0.0001378,2]
[353096548,1739559058092,-500.0,0.0001378,2]
[353096549,1739559058102,-1696.51,0.0001378,2]
[353096550,1739559058112,-500.0,0.0001378,2]
[353096551,1739559058123,-502.19260668,0.0001378,2]
[353096552,1739559058132,-500.0,0.0001378,2]
[353096553,1739559058142,-500.0,0.0001378,2]
[353096554,1739559058152,-500.0,0.0001378,2]
[353096555,1739559058162,-4321.1,0.0001378,2]
[353096556,1739559058171,-500.0,0.0001378,2]
[353096557,1739559058181,-500.0,0.0001378,2]
[353096558,1739559058191,-500.0,0.0001378,2]
[353096559,1739559058201,-742.35,0.0001378,2]
[353096560,1739559058211,-509.92,0.0001378,2]
[353096561,1739559058220,-500.0,0.0001378,2]
[353096562,1739559058230,-500.0,0.0001378,2]
[353096563,1739559058240,-500.0,0.0001378,2]
[353096564,1739559058250,-500.0,0.0001378,2]
[353096565,1739559058259,-14620.48,0.0001378,2]
[353096566,1739559058269,-1937.65,0.0001378,2]
[353096567,1739559058279,-500.0,0.0001378,2]
[353096568,1739559058288,-1501.14,0.0001378,2]
[353096569,1739559058299,-500.0,0.0001378,2]
[353096570,1739559058309,-4622.17,0.0001378,2]
[353096571,1739559058318,-500.0,0.0001378,2]
[353096572,1739559058328,-504.98678326,0.0001378,2]
[353096573,1739559058338,-500.0,0.0001378,2]
[353096574,1739559058347,-500.0,0.0001378,2]
[353096575,1739559058357,-500.0,0.0001378,2]
[353096576,1739559058367,-506.87092836,0.0001378,2]
[353096577,1739559058378,-1488.32,0.0001378,2]
[353096578,1739559058387,-501.70973441,0.0001378,2]
[353096579,1739559058397,-501.07551732,0.0001378,2]
[353096580,1739559058406,-814.1,0.0001378,2]
[353096581,1739559058416,-2374.16,0.0001378,2]
[353096582,1739559058426,-500.0,0.0001378,2]
[353096583,1739559058435,-54365.77,0.0001378,2]
[353096584,1739559058445,-500.0,0.0001378,2]
[353096585,1739559058455,-2182.18,0.0001378,2]
[353096586,1739559058464,-500.0,0.0001378,2]
[353096587,1739559058474,-500.0,0.0001378,2]
[353096588,1739559058483,-500.0,0.0001378,2]
[353096589,1739559058493,-459.51609353,0.0001378,2]
[353096590,1739559058503,-500.0,0.0001378,2]
[353096591,1739559058512,-500.0,0.0001378,2]
[353096592,1739559058521,-500.0,0.0001378,2]
[353096593,1739559058531,-500.0,0.0001378,2]
[353096594,1739559058541,-500.0,0.0001378,2]
[353096595,1739559058551,-500.0,0.0001378,2]
[353096596,1739559058560,-2760.89,0.0001378,2]
[353096597,1739559058570,-253.91696879,0.0001378,2]
[353096598,1739559058580,-561.81,0.0001378,2]
[353096599,1739559058590,-500.0,0.0001378,2]
[353096600,1739559058600,-1722.67,0.0001378,2]
[353096601,1739559058610,-1666.2,0.0001378,2]
[353096602,1739559058621,-500.0,0.0001378,2]
[353096603,1739559058630,-500.0,0.0001378,2]
[353096604,1739559058641,-289.51229172,0.0001378,2]
[353096605,1739559058651,-500.0,0.0001378,2]
[353096606,1739559058660,-500.0,0.0001378,2]
[353096607,1739559058672,-500.0,0.0001378,2]
[353096608,1739559058683,-2723.46,0.0001378,2]
[353096609,1739559058693,-502.2365026,0.0001378,2]
[353096610,1739559058703,-21701.89,0.0001378,2]
[353096611,1739559058715,-696.45,0.0001378,2]
[353096612,1739559058725,-500.0,0.0001378,2]
[353096613,1739559058734,-500.0,0.0001378,2]
[353096614,1739559058744,-500.0,0.0001378,2]
[353096615,1739559058754,-741.55,0.0001378,2]
[353096616,1739559058765,-500.0,0.0001378,2]
[353096617,1739559058775,-500.0,0.0001378,2]
[353096618,1739559058784,-1261.69,0.0001378,2]
[353096619,1739559058794,-571.73,0.0001378,2]
[353096620,1739559058804,-500.0,0.0001378,2]
[353096621,1739559058814,-500.0,0.0001378,2]
[353096622,1739559058824,-500.0,0.0001378,2]
[353096623,1739559058834,-500.0,0.0001378,2]
[353096624,1739559058844,-500.0,0.0001378,2]
[353096625,1739559058854,-500.0,0.0001378,2]
[353096626,1739559058864,-624.97845569,0.0001378,2]
[353096627,1739559058876,-4403.56,0.0001378,2]
[353096628,1739559058886,-2489.39,0.0001378,2]
[353096629,1739559058895,-500.0,0.0001378,2]
[353096630,1739559058906,-500.0,0.0001378,2]
[353096631,1739559058916,-542.28,0.0001378,2]
[353096632,1739559058926,-500.0,0.0001378,2]
[353096633,1739559058937,-500.0,0.0001378,2]
[353096634,1739559058946,-1424.03,0.0001378,2]
[353096635,1739559058957,-500.0,0.0001378,2]
[353096636,1739559058967,-500.0,0.0001378,2]
[353096637,1739559058977,-2421.65,0.0001378,2]
[353096638,1739559058987,-4716.05,0.0001378,2]
[353096639,1739559058998,-500.0,0.0001378,2]
[353096640,1739559059009,-500.0,0.0001378,2]
[353096641,1739559059020,-500.0,0.0001378,2]
[353096642,1739559059030,-500.0,0.0001378,2]
[353096643,1739559059040,-773.1,0.0001378,2]
[353096644,1739559059050,-590.57505688,0.0001378,2]
[353096645,1739559059060,-500.0,0.0001378,2]
[353096646,1739559059070,-500.0,0.0001378,2]
[353096647,1739559059080,-500.0,0.0001378,2]
[353096648,1739559059090,-696.32,0.0001378,2]
[353096649,1739559059100,-2096.26,0.0001378,2]
[353096650,1739559059110,-656.79,0.0001378,2]
[353096651,1739559059121,-500.0,0.0001378,2]
[353096652,1739559059131,-500.0,0.0001378,2]
[353096653,1739559059142,-500.0,0.0001378,2]
[353096654,1739559059152,-11242.5,0.0001378,2]
[353096655,1739559059162,-445.09070346,0.0001378,2]
[353096656,1739559059172,-500.0,0.0001378,2]
[353096657,1739559059182,-500.0,0.0001378,2]
[353096658,1739559059191,-1815.46,0.0001378,2]
[353096659,1739559059201,-500.0,0.0001378,2]
[353096660,1739559059211,-504.57467689,0.0001378,2]
[353096661,1739559059221,-500.0,0.0001378,2]
[353096662,1739559059231,-503.29641154,0.0001378,2]
[353096663,1739559059240,-500.0,0.0001378,2]
[353096664,1739559059250,-1219.28,0.0001378,2]
[353096665,1739559059259,-500.0,0.0001378,2]
[353096666,1739559059269,-500.0,0.0001378,2]
[353096667,1739559059279,-500.0,0.0001378,2]
[353096668,1739559059289,-502.33790019,0.0001378,2]
[353096669,1739559059299,-500.0,0.0001378,2]
[353096670,1739559059309,-500.0,0.0001378,2]
[353096671,1739559059318,-994.47,0.0001378,2]
[353096672,1739559059327,-500.0,0.0001378,2]
[353096673,1739559059337,-3134.94,0.0001378,2]
[353096674,1739559059347,-500.0,0.0001378,2]
[353096675,1739559059357,-500.0,0.0001378,2]
[353096676,1739559059366,-500.0,0.0001378,2]
[353096677,1739559059376,-5805.22,0.0001378,2]
[353096678,1739559059386,-533.85,0.0001378,2]
[353096679,1739559059395,-3977.06,0.0001378,2]
[353096680,1739559059404,-500.0,0.0001378,2]
[353096681,1739559059415,-501.23865578,0.0001378,2]
[353096682,1739559059424,-500.0,0.0001378,2]
[353096683,1739559059436,-500.0,0.0001378,2]
[353096684,1739559059448,-500.0,0.0001378,2]
[353096685,1739559059459,-3989.88,0.0001378,2]
[353096686,1739559059469,-558.95739342,0.0001378,2]
[353096687,1739559059478,-500.0,0.0001378,2]
[353096688,1739559059487,-173.9442952,0.00013787,2]
[353096689,1739559059496,-1194.681839,0.00013789,8]
[353096690,1739559059506,-156.476138,0.00013797,5]
[353096691,1739559059516,-96801.53805168,0.000138,2]
[353097165,1739560245933,-231.331507,0.00010685,2]
[353097166,1739560245943,-900.0,0.0001308,2]
[353097167,1739560245953,-7438.69753278,0.000133,2]
[353097168,1739560245963,-300.0,0.00013597,2]
[353097169,1739560245973,-3000.0,0.00013598,2]
[353097170,1739560245983,-432.1599939,0.00013662,2]
[353097171,1739560245993,-501.18232424,0.00013698,2]
[353097172,1739560246003,-500.0,0.00013698,2]
[353097173,1739560246012,-500.0,0.00013698,2]
[353097174,1739560246022,-500.0,0.00013698,2]
[353097175,1739560246034,-500.0,0.00013698,2]
[353097176,1739560246044,-500.0,0.00013698,2]
[353097177,1739560246055,-500.0,0.00013698,2]
[353097178,1739560246065,-624.17,0.00013698,2]
[353097179,1739560246075,-500.0,0.00013698,2]
[353097180,1739560246085,-500.0,0.00013698,2]
[353097181,1739560246096,-249.58592137,0.00013698,2]
[353097182,1739560246108,-611.22755659,0.00013698,2]
[353097183,1739560246117,-500.0,0.00013698,2]
[353097184,1739560246126,-250.04220008,0.00013698,2]
[353097185,1739560246138,-500.0,0.00013698,2]
[353097186,1739560246147,-500.0,0.00013698,2]
[353097187,1739560246156,-500.0,0.00013698,2]
[353097188,1739560246166,-500.0,0.00013698,2]
[353097189,1739560246176,-500.0,0.00013698,2]
[353097190,1739560246186,-500.0,0.00013698,2]
[353097191,1739560246196,-500.0,0.00013698,2]
[353097192,1739560246206,-620.50429697,0.00013698,2]
[353097193,1739560246215,-502.52088211,0.00013698,2]
[353097194,1739560246225,-500.0,0.00013698,2]
[353097195,1739560246234,-504.14855898,0.00013698,2]
[353097196,1739560246244,-500.0,0.00013698,2]
[353097197,1739560246253,-500.0,0.00013698,2]
[353097198,1739560246264,-500.0,0.00013698,2]
[353097199,1739560246273,-501.44177746,0.00013698,2]
[353097200,1739560246283,-462.12428653,0.00013698,2]
[353097201,1739560246425,-500.0,0.00013698,2]
[353097202,1739560246435,-500.0,0.00013698,2]
[353097203,1739560246445,-635.63,0.00013698,2]
[353097204,1739560246455,-725.61,0.00013698,2]
[353097205,1739560246464,-500.0,0.00013698,2]
[353097206,1739560246474,-500.0,0.00013698,2]
[353097207,1739560246483,-500.0,0.00013698,2]
[353097208,1739560246492,-218.06374026,0.00013698,2]
[353097209,1739560246502,-500.0,0.00013698,2]
[353097210,1739560246512,-500.0,0.00013698,2]
[353097211,1739560246521,-500.0,0.00013698,2]
[353097212,1739560246531,-500.0,0.00013698,2]
[353097213,1739560246540,-500.0,0.00013698,2]
[353097214,1739560246551,-502.63346704,0.00013698,2]
[353097215,1739560246562,-500.0,0.00013698,2]
[353097216,1739560246571,-500.0,0.00013698,2]
[353097217,1739560246581,-500.0,0.00013698,2]
[353097218,1739560246590,-1006.03,0.00013698,2]
[353097219,1739560246601,-500.0,0.00013698,2]
[353097220,1739560246611,-500.0,0.00013698,2]
[353097221,1739560246620,-500.0,0.00013698,2]
[353097222,1739560246630,-500.0,0.00013698,2]
[353097223,1739560246640,-500.0,0.00013698,2]
[353097224,1739560246650,-500.0,0.00013698,2]
[353097225,1739560246660,-500.0,0.00013698,2]
[353097226,1739560246669,-500.0,0.00013698,2]
[353097227,1739560246679,-500.0,0.00013698,2]
[353097228,1739560246689,-500.0,0.00013698,2]
[353097229,1739560246699,-500.0,0.00013698,2]
[353097230,1739560246710,-500.0,0.00013698,2]
[353097231,1739560246720,-500.0,0.00013698,2]
[353097232,1739560246730,-639.26932728,0.00013698,2]
[353097233,1739560246739,-904.4,0.00013698,2]
[353097234,1739560246749,-500.0,0.00013698,2]
[353097235,1739560246759,-500.0,0.00013698,2]
[353097236,1739560246768,-500.0,0.00013698,2]
[353097237,1739560246778,-500.0,0.00013698,2]
[353097238,1739560246788,-500.0,0.00013698,2]
[353097239,1739560246798,-500.0,0.00013698,2]
[353097240,1739560246808,-500.0,0.00013698,2]
[353097241,1739560246822,-500.0,0.00013698,2]
[353097242,1739560246831,-500.0,0.00013698,2]
[353097243,1739560246841,-381.97098005,0.00013698,2]
[353097244,1739560246851,-500.0,0.00013698,2]
[353097245,1739560246860,-500.0,0.00013698,2]
[353097246,1739560246870,-500.0,0.00013698,2]
[353097247,1739560246880,-740.07,0.00013698,2]
[353097248,1739560246891,-500.0,0.00013698,2]
[353097249,1739560246900,-500.0,0.00013698,2]
[353097250,1739560246910,-500.0,0.00013698,2]
[353097251,1739560246920,-542.73,0.00013698,2]
[353097252,1739560246988,-500.0,0.00013698,2]
[353097253,1739560247142,-500.0,0.00013698,2]
[353097254,1739560247268,-500.0,0.00013698,2]
[353097255,1739560247397,-818.54,0.00013698,2]
[353097256,1739560247505,-500.0,0.00013698,2]
[353097257,1739560247634,-503.79868617,0.00013698,2]
[353097258,1739560247731,-645.69,0.00013698,2]
[353097259,1739560247829,-500.0,0.00013698,2]
[353097260,1739560247965,-500.0,0.00013698,2]
[353097261,1739560248108,-503.43145638,0.00013698,2]
[353097262,1739560248145,-500.0,0.00013698,2]
[353097263,1739560248157,-500.0,0.00013698,2]
[353097264,1739560248167,-500.0,0.00013698,2]
[353097265,1739560248177,-500.0,0.00013698,2]
[353097266,1739560248192,-500.0,0.00013698,2]
[353097267,1739560248202,-500.0,0.00013698,2]
[353097268,1739560248213,-500.0,0.00013698,2]
[353097269,1739560248223,-400.2037739,0.00013698,2]
[353097270,1739560248233,-500.0,0.00013698,2]
[353097271,1739560248243,-500.0,0.00013698,2]
[353097272,1739560248253,-500.0,0.00013698,2]
[353097273,1739560248262,-1359.22,0.00013698,2]
[353097274,1739560248273,-500.0,0.00013698,2]
[353097275,1739560248283,-500.0,0.00013698,2]
[353097276,1739560248293,-1513.89,0.00013698,2]
[353097277,1739560248304,-723.28,0.00013698,2]
[353097278,1739560248314,-1441.12,0.00013698,2]
[353097279,1739560248324,-500.0,0.00013698,2]
[353097280,1739560248334,-500.0,0.00013698,2]
[353097281,1739560248344,-500.0,0.00013698,2]
[353097282,1739560248354,-501.93634187,0.00013698,2]
[353097283,1739560248365,-500.0,0.00013698,2]
[353097284,1739560248375,-500.0,0.00013698,2]
[353097285,1739560248384,-500.0,0.00013698,2]
[353097286,1739560248394,-500.0,0.00013698,2]
[353097287,1739560248405,-501.85798957,0.00013698,2]
[353097288,1739560248415,-500.0,0.00013698,2]
[353097289,1739560248426,-763.12,0.00013698,2]
[353097290,1739560248437,-500.0,0.00013698,2]
[353097291,1739560248449,-500.0,0.00013698,2]
[353097292,1739560248459,-500.0,0.00013698,2]
[353097293,1739560248469,-500.0,0.00013698,2]
[353097294,1739560248479,-500.0,0.00013698,2]
[353097295,1739560248490,-500.0,0.00013698,2]
[353097296,1739560248501,-500.0,0.00013698,2]
[353097297,1739560248511,-500.0,0.00013698,2]
[353097298,1739560248522,-500.0,0.00013698,2]
[353097299,1739560248532,-1459.31,0.00013698,2]
[353097300,1739560248542,-321.09939492,0.00013698,2]
[353097301,1739560248552,-500.0,0.00013698,2]
[353097302,1739560248562,-638.29,0.00013698,2]
[353097303,1739560248573,-500.0,0.00013698,2]
[353097304,1739560248582,-500.0,0.00013698,2]
[353097305,1739560248592,-500.0,0.00013698,2]
[353097306,1739560248602,-1664.17,0.00013698,2]
[353097307,1739560248612,-500.0,0.00013698,2]
[353097308,1739560248622,-500.0,0.00013698,2]
[353097309,1739560248631,-1172.71,0.00013698,2]
[353097310,1739560248641,-500.0,0.00013698,2]
[353097311,1739560248651,-500.0,0.00013698,2]
[353097312,1739560248662,-955.43,0.00013698,2]
[353097313,1739560248672,-500.0,0.00013698,2]
[353097314,1739560248682,-911.6,0.00013698,2]
[353097315,1739560248691,-500.0,0.00013698,2]
[353097316,1739560248701,-500.0,0.00013698,2]
[353097317,1739560248711,-500.0,0.00013698,2]
[353097318,1739560248722,-500.0,0.00013698,2]
[353097319,1739560248731,-2187.24,0.00013698,2]
[353097320,1739560248741,-500.0,0.00013698,2]
[353097321,1739560248751,-500.0,0.00013698,2]
[353097322,1739560248760,-500.0,0.00013698,2]
[353097323,1739560248770,-500.0,0.00013698,2]
[353097324,1739560248780,-500.0,0.00013698,2]
[353097325,1739560248790,-500.0,0.00013698,2]
[353097326,1739560248804,-500.0,0.00013698,2]
[353097327,1739560248814,-712.07,0.00013698,2]
[353097328,1739560248824,-502.0355659,0.00013698,2]
[353097329,1739560248835,-500.96566589,0.00013698,2]
[353097330,1739560248845,-1555.13,0.00013698,2]
[353097331,1739560248855,-5740.29,0.00013698,2]
[353097332,1739560248865,-500.0,0.00013698,2]
[353097333,1739560248875,-500.0,0.00013698,2]
[353097334,1739560248884,-4463.31,0.00013698,2]
[353097335,1739560248894,-500.0,0.00013698,2]
[353097336,1739560248904,-500.0,0.00013698,2]
[353097337,1739560248913,-500.0,0.00013698,2]
[353097338,1739560248923,-500.0,0.00013698,2]
[353097339,1739560248932,-500.0,0.00013698,2]
[353097340,1739560248941,-500.0,0.00013698,2]
[353097341,1739560248951,-590.15846162,0.00013698,2]
[353097342,1739560248961,-500.0,0.00013698,2]
[353097343,1739560248971,-500.0,0.00013698,2]
[353097344,1739560248982,-500.0,0.00013698,2]
[353097345,1739560248992,-500.0,0.00013698,2]
[353097346,1739560249003,-500.0,0.00013698,2]
[353097347,1739560249013,-7407.14,0.00013698,2]
[353097348,1739560249023,-500.0,0.00013698,2]
[353097349,1739560249034,-899.04,0.00013698,2]
[353097350,1739560249044,-500.0,0.00013698,2]
[353097351,1739560249054,-500.0,0.00013698,2]
[353097352,1739560249065,-500.0,0.00013698,2]
[353097353,1739560249075,-13402.11,0.00013698,2]
[353097354,1739560249085,-500.0,0.00013698,2]
[353097355,1739560249095,-500.0,0.00013698,2]
[353097356,1739560249109,-500.46450138,0.00013698,2]
[353097357,1739560249119,-778.78,0.00013698,2]
[353097358,1739560249130,-500.0,0.00013698,2]
[353097359,1739560249142,-500.0,0.00013698,2]
[353097360,1739560249152,-500.0,0.00013698,2]
[353097361,1739560249163,-500.0,0.00013698,2]
[353097362,1739560249174,-1376.05,0.00013698,2]
[353097363,1739560249184,-500.0,0.00013698,2]
[353097364,1739560249197,-500.0,0.00013698,2]
[353097365,1739560249206,-500.0,0.00013698,2]
[353097366,1739560249215,-1412.26,0.00013698,2]
[353097367,1739560249224,-680.49,0.00013698,2]
[353097368,1739560249234,-500.0,0.00013698,2]
[353097369,1739560249244,-500.0,0.00013698,2]
[353097370,1739560249255,-500.0,0.00013698,2]
[353097371,1739560249265,-500.0,0.00013698,2]
[353097372,1739560249274,-500.0,0.00013698,2]
[353097373,1739560249285,-4236.99,0.00013698,2]
[353097374,1739560249297,-49835.29,0.00013698,2]
[353097375,1739560249308,-500.0,0.00013698,2]
[353097376,1739560249319,-1776.18,0.00013698,2]
[353097377,1739560249330,-19893.4,0.00013698,2]
[353097378,1739560249340,-172.60800867,0.00013698,2]
[353097379,1739560768459,2000.0,0.00018,30]
[353097380,1739560862607,-2242412.66881651,0.00018076,61]
[353097381,1739560862632,-500.0,0.00018076,120]
[353097382,1739560862659,-2000.0,0.00018076,30]
[353097383,1739560862685,-2000.0,0.00018076,30]
[353097384,1739560862710,-2000.0,0.00018076,30]
[353097385,1739560862735,-2000.0,0.00018076,30]
[353097386,1739560862760,-2000.0,0.00018076,30]
[353097387,1739560862786,-842.7,0.00018076,30]
[353097388,1739560862810,-842.7,0.00018076,30]
[353097389,1739560862836,-842.7,0.00018076,30]
[353097390,1739560862862,-396100.0,0.00018076,120]
[353097391,1739560862888,-978.12745116,0.00018076,120]
[353097392,1739560862914,-2000.0,0.00018076,30]
[353097393,1739560862937,-528.1,0.00018076,30]
[353097394,1739560862962,-2000.0,0.00018076,30]
[353097395,1739560862987,-1000.0,0.00018076,30]
[353097396,1739560863013,-1000.0,0.00018076,30]
[353097397,1739560863041,-1000.0,0.00018076,30]
[353097398,1739560863067,-1000.0,0.00018076,30]
[353097399,1739560863094,-1000.0,0.00018076,30]
[353097400,1739560863118,-1813.295744,0.00018076,30]
[353097454,1739561432153,-219.764931,0.00010685,2]
[353097455,1739561432163,-206.5683864,0.00012656,2]
[353097456,1739561432172,-900.0,0.00013144,2]
[353097457,1739561432183,-7438.69753278,0.00013392,2]
[353097458,1739561432193,-173.9442952,0.00013598,2]
[353097459,1739561432343,-300.0,0.00013599,2]
[353097460,1739561432354,-6499.77439949,0.000136,2]